bitfinex/quotes_ETHUSD_20260202
["timestamp","ask_amount","ask_price","bid_price","bid_amount"]
[1769992173831,14.6719063,2317.9,2317.0,0.01342642]
[1769992174214,0.0011,2318.3,2317.7,0.01342642]
[1769992174407,0.0011,2318.3,2318.1,0.01342642]
[1769992174937,0.0011,2318.3,2318.2,0.01342642]
[1769992175139,0.0011,2318.3,2318.0,0.01342642]
[1769992175346,0.0011,2318.3,2317.6,4.32822428]
[1769992175508,0.0011,2318.3,2317.8,1.07858993]
[1769992175703,0.0011,2318.3,2317.7,0.01342642]
[1769992175910,0.0011,2318.3,2317.7,1.07862079]
[1769992176536,0.0011,2318.3,2317.9,1.07856184]
[1769992176718,0.0011,2318.3,2317.8,0.01342642]
[1769992177037,0.0011,2318.3,2317.7,1.09204757]
[1769992177241,0.0011,2318.3,2317.8,0.01342642]
[1769992177442,0.0011,2318.3,2317.7,1.09205994]
[1769992178015,0.0011,2318.3,2317.9,0.01342642]
[1769992178541,0.0011,2318.3,2317.6,1.07867246]
[1769992178746,0.0011,2318.3,2317.7,1.09207663]
[1769992179117,0.0011,2318.3,2317.7,0.01342642]
[1769992179445,0.0011,2318.3,2317.6,0.01342642]
[1769992180013,0.0011,2318.3,2317.5,4.32835666]
[1769992180441,0.0011,2318.3,2317.4,1.09217507]
[1769992180442,0.0011,2318.3,2317.4,1.09218677]
[1769992180946,0.0011,2318.3,2316.2,0.01342642]
[1769992180947,12.66718025,2317.8,2316.2,0.01342642]
[1769992181248,1.07874865,2317.5,2316.2,0.01342642]
[1769992181458,1.07874865,2317.5,2316.3,1.09273393]
[1769992181618,13.7459289,2317.5,2316.1,1.09281767]
[1769992181817,13.7459289,2317.5,2316.0,3.2208319]
[1769992181818,12.66718025,2317.3,2316.0,3.2208319]
[1769992182048,12.66718025,2316.8,2314.9,4.31983201]
[1769992182260,12.66718025,2316.3,2315.0,0.4320832]
[1769992182438,12.66718025,2316.3,2314.8,0.001]
[1769992182740,12.66718025,2316.3,2314.9,0.01342642]
[1769992183041,12.66718025,2316.3,2314.9,1.07994826]
[1769992183244,12.66718025,2316.3,2314.8,1.08097917]
[1769992183546,13.74653436,2316.2,2314.8,1.09440559]
[1769992183745,2.71139508,2316.1,2314.8,1.09440559]
[1769992184052,2.71139508,2316.1,2314.9,0.01342642]
[1769992184420,2.71139508,2316.1,2315.0,0.001]
[1769992185362,1.07902801,2316.9,2316.0,0.01342642]
[1769992185530,1.07902801,2316.9,2315.9,1.09289049]
[1769992185734,1.07902801,2316.9,2315.8,0.01342642]
[1769992185735,1.07902801,2316.9,2315.7,0.01342642]
[1769992185930,1.07902801,2316.9,2315.6,0.01342642]
[1769992186156,13.40354345,2316.7,2315.3,0.01342642]
[1769992186334,13.40354345,2316.7,2315.7,0.01342642]
[1769992186530,14.30854345,2316.7,2315.6,1.09305333]
[1769992186734,14.30854345,2316.7,2315.5,1.09308104]
[1769992186936,14.30854345,2316.7,2315.6,0.01342642]
[1769992187133,14.904683,2316.6,2315.2,1.07981539]
[1769992187366,14.904683,2316.6,2315.2,1.07978964]
[1769992187537,13.40354345,2316.4,2315.0,1.09431617]
[1769992188172,13.40354345,2316.2,2315.0,0.001]
[1769992188376,13.40354345,2316.0,2315.0,0.001]
[1769992188576,0.11582642,2316.4,2315.0,0.001]
[1769992188577,4.3300974,2316.8,2315.1,1.07986696]
[1769992188737,1.09245443,2316.9,2315.1,1.07986696]
[1769992189242,0.01342642,2316.2,2315.1,1.07986696]
[1769992189442,1.07944525,2316.1,2315.0,0.001]
[1769992189635,1.98435588,2316.2,2315.0,0.001]
[1769992189860,1.98437876,2316.2,2315.0,0.001]
[1769992190163,1.99780518,2316.2,2315.0,0.001]
[1769992190365,0.905,2316.2,2315.0,0.001]
[1769992190570,2.7258236,2317.0,2315.0,13.63212927]
[1769992190750,0.01342642,2316.5,2315.1,1.36321293]
[1769992190946,0.01342642,2316.4,2315.1,1.36321293]
[1769992191153,0.01342642,2316.5,2315.0,0.001]
[1769992191356,0.01342642,2316.6,2315.0,0.001]
[1769992191550,1.09261057,2316.6,2315.0,0.001]
[1769992191851,0.01342642,2316.7,2315.0,13.63212927]
[1769992192042,0.01342642,2316.6,2315.0,13.63212927]
[1769992192241,0.01342642,2316.5,2315.1,1.36321293]
[1769992192465,0.01342642,2316.5,2315.0,0.001]
[1769992192765,0.01342642,2316.8,2315.0,13.63212927]
[1769992192944,1.99745443,2316.9,2315.0,13.63212927]
[1769992193348,0.01342642,2316.8,2315.0,13.63212927]
[1769992193552,1.99745443,2316.9,2315.1,14.71099623]
[1769992193757,1.99745443,2316.9,2315.2,1.90314641]
[1769992194672,1.99745443,2316.9,2315.3,0.905]
[1769992194844,0.01342642,2316.6,2315.3,0.905]
[1769992195274,0.01342642,2316.8,2315.3,0.905]
[1769992195448,2.72582023,2317.0,2315.3,14.53612927]
[1769992195649,0.01342642,2316.9,2315.5,1.07968041]
[1769992196356,2.72582023,2317.0,2315.5,1.07968041]
[1769992196575,0.01342642,2316.9,2315.5,1.07968041]
[1769992196944,0.01342642,2316.8,2315.5,1.07968041]
[1769992197146,0.01342642,2316.6,2315.5,1.07968041]
[1769992197349,0.01342642,2316.7,2315.6,0.70423296]
[1769992197881,1.08026774,2316.6,2315.7,1.07958716]
[1769992198083,1.09369416,2316.6,2315.6,1.78385782]
[1769992198256,0.01342642,2316.4,2315.6,1.07962507]
[1769992198856,0.01342642,2316.5,2315.6,1.07962507]
[1769992199080,0.01342642,2316.4,2315.5,1.07964806]
[1769992199989,0.01342642,2316.4,2315.3,0.905]
[1769992199990,1.09273393,2316.3,2315.3,1.98476991]
[1769992200145,1.09273393,2316.3,2315.3,2.61529172]
[1769992200398,0.01452642,2316.6,2315.3,2.61529172]
[1769992200399,0.0011,2316.6,2315.3,2.61529172]
[1769992200708,0.0011,2316.6,2315.3,16.24642099]
[1769992200910,1.09369528,2316.6,2315.3,2.61529172]
[1769992201114,1.09369528,2316.6,2315.2,4.32027571]
[1769992201115,0.01342642,2316.3,2315.2,0.001]
[1769992201313,0.01342642,2316.3,2315.3,1.07977027]
[1769992201616,0.01342642,2316.0,2315.2,0.001]
[1769992201817,0.01342642,2316.0,2315.3,1.07976114]
[1769992201996,1.09282467,2316.2,2315.2,0.001]
[1769992202318,0.01342642,2315.9,2315.2,0.001]
[1769992202492,0.01342642,2315.7,2315.2,0.001]
[1769992202990,0.01342642,2315.9,2315.2,0.001]
[1769992203192,0.01342642,2315.3,2314.6,0.001]
[1769992203417,0.905,2315.4,2314.6,0.001]
[1769992203618,0.01342642,2315.2,2314.6,0.001]
[1769992203920,0.01342642,2315.6,2314.6,0.001]
[1769992203921,1.6217729,2316.1,2314.7,0.905]
[1769992204130,1.07926092,2316.4,2314.8,0.53604785]
[1769992204331,1.07926092,2316.4,2314.9,0.01342642]
[1769992204512,1.07926092,2316.4,2314.8,0.52262143]
[1769992204836,0.01342642,2316.2,2314.8,0.52262143]
[1769992205131,1.07926092,2316.4,2314.7,0.905]
[1769992205330,1.07926092,2316.4,2314.8,0.01342642]
[1769992205736,0.54237927,2316.5,2314.9,0.01342642]
[1769992206034,0.0011,2316.6,2315.2,1.07982031]
[1769992206209,0.0011,2316.6,2315.2,1.09324673]
[1769992206402,0.0011,2316.6,2315.3,0.54259544]
[1769992206729,0.0011,2316.6,2315.4,0.01342642]
[1769992206930,0.0011,2316.6,2315.5,14.54955569]
[1769992207235,1e-08,2316.9,2316.1,0.01342642]
[1769992207537,1.0797421,2317.8,2316.1,0.01342642]
[1769992207704,0.0011,2317.8,2316.2,0.01342642]
[1769992207900,0.0011,2317.8,2316.4,1.07926092]
[1769992208135,0.0011,2317.8,2316.5,0.63013046]
[1769992208531,0.0011,2317.8,2316.5,0.64355688]
[1769992208731,0.0011,2317.8,2316.5,0.63013046]
[1769992210234,0.0011,2317.8,2316.6,1.07916774]
[1769992210639,0.01342642,2317.7,2316.6,1.07916774]
[1769992210809,0.01342642,2317.7,2316.6,1.68177979]
[1769992211010,0.0011,2317.6,2316.6,1.68177979]
[1769992211206,0.0011,2317.6,2316.5,1.0802051]
[1769992211410,0.01342642,2317.5,2316.5,0.001]
[1769992211834,0.01452642,2317.6,2316.5,0.001]
[1769992211835,0.01452642,2317.6,2316.5,1.08021267]
[1769992212135,0.01452642,2317.6,2316.5,0.001]
[1769992212136,1.07874865,2317.5,2316.5,0.001]
[1769992212945,0.0011,2317.6,2316.5,0.001]
[1769992213314,0.0011,2317.8,2316.6,0.01342642]
[1769992213642,0.0011,2317.8,2316.7,0.01342642]
[1769992214240,0.0011,2317.8,2316.8,1.07907458]
[1769992214541,0.0011,2317.8,2316.7,1.07909151]
[1769992214710,0.0011,2317.8,2316.5,1.08021429]
[1769992214711,0.01342642,2317.7,2316.5,1.08021429]
[1769992214911,1.30214824,2317.7,2316.5,1.08021429]
[1769992215140,1.30214824,2317.7,2316.3,0.906]
[1769992215141,14.16141361,2317.7,2316.3,0.906]
[1769992215308,14.16141361,2317.7,2316.3,0.001]
[1769992215309,12.87269179,2317.3,2316.3,0.001]
[1769992215514,0.01342642,2316.6,2315.3,2.79116152]
[1769992215720,0.1024,2316.4,2315.3,2.24856608]
[1769992215923,12.87269179,2316.1,2314.6,0.906]
[1769992216123,12.87269179,2316.1,2314.6,1.98607646]
[1769992216124,1.07954054,2315.8,2314.6,1.98607646]
[1769992217138,1.09296696,2315.8,2314.6,0.906]
[1769992217439,1.07954054,2315.8,2314.6,0.001]
[1769992217640,0.01342642,2315.6,2314.6,0.001]
[1769992217945,0.01342642,2315.5,2314.6,0.001]
[1769992218148,1.07977367,2315.3,2314.6,0.001]
[1769992218641,1.09320009,2315.3,2314.0,0.001]
[1769992218829,0.01342642,2315.0,2314.0,0.001]
[1769992219030,1.49374356,2315.0,2314.0,0.001]
[1769992219250,1.09320009,2315.3,2314.0,0.001]
[1769992219251,1.98477367,2315.3,2314.0,0.001]
[1769992220454,1.07977367,2315.3,2314.0,0.001]
[1769992220825,1.0796607,2315.6,2314.0,0.01442642]
[1769992221030,1.0074,2316.0,2314.0,0.01442642]
[1769992221031,4.31811417,2315.9,2314.1,0.01342642]
[1769992221232,4.31811417,2315.9,2314.2,0.01342642]
[1769992221430,2.15177776,2315.9,2314.3,0.01342642]
[1769992221662,1.07949393,2315.9,2314.4,0.01342642]
[1769992221827,1.07949393,2315.9,2314.5,0.01342642]
[1769992222233,4.31744037,2316.2,2314.6,1.08010023]
[1769992222455,17.19013216,2316.2,2314.6,1.08010023]
[1769992222631,0.01342642,2316.1,2314.6,1.08010023]
[1769992222849,14.78963928,2316.1,2314.7,0.54005012]
[1769992223138,12.87269179,2316.0,2314.7,0.54005012]
[1769992223348,12.85926537,2316.0,2314.5,1.08011599]
[1769992223959,12.87269179,2315.9,2314.9,0.001]
[1769992224362,1.07954054,2315.8,2314.9,0.001]
[1769992224562,1.09296696,2315.8,2314.9,0.001]
[1769992224862,0.01342642,2315.7,2314.9,0.001]
[1769992225161,0.905,2315.6,2314.9,0.001]
[1769992225660,0.91842642,2315.6,2314.9,0.001]
[1769992225862,0.905,2315.6,2314.9,0.001]
[1769992226034,1.07954054,2315.8,2314.9,0.001]
[1769992226358,4.31816219,2315.9,2314.9,0.001]
[1769992226558,1.07949393,2315.9,2314.9,0.001]
[1769992227162,1.07946744,2316.0,2314.9,0.001]
[1769992227329,1.07926987,2316.4,2314.9,0.001]
[1769992227533,1.997501,2316.8,2314.9,0.01442642]
[1769992227735,1.91729908,2316.7,2314.9,0.01442642]
[1769992227932,1.91729908,2316.7,2315.0,0.01342642]
[1769992228247,1.91729908,2316.7,2314.9,0.001]
[1769992228248,14.78999087,2316.7,2314.9,0.001]
[1769992228448,1.07921433,2316.5,2314.9,0.001]
[1769992230434,4.31685732,2316.6,2314.9,1.08096025]
[1769992230656,3.24602791,2316.5,2315.0,0.54142277]
[1769992231179,16.10529328,2316.5,2315.0,0.54142277]
[1769992231471,16.10529328,2316.5,2314.9,1.08096025]
[1769992231472,0.01342642,2316.2,2314.9,1.08096025]
[1769992231666,0.01342642,2316.2,2314.6,0.001]
[1769992231667,12.85926537,2315.8,2314.6,0.001]
[1769992231857,0.01342642,2315.6,2314.6,0.001]
[1769992232059,1.39388088,2315.6,2314.6,0.001]
[1769992232260,1.38045446,2315.6,2314.7,1.08002584]
[1769992232448,1.38045446,2315.6,2314.6,4.32136143]
[1769992232449,1.07958716,2315.7,2314.6,0.001]
[1769992233043,0.55103934,2315.6,2314.6,0.001]
[1769992233363,0.56446576,2315.6,2314.0,1.08138029]
[1769992233547,12.87269179,2315.6,2314.0,1.08138029]
[1769992233748,1.39657054,2315.5,2314.1,0.54163279]
[1769992233948,1.07958716,2315.7,2314.1,0.54163279]
[1769992234153,1.07958716,2315.7,2314.1,0.55505921]
[1769992234551,17.17761403,2315.8,2314.2,1.08028692]
[1769992234761,4.31834866,2315.8,2314.2,1.09371334]
[1769992234959,0.1024,2316.2,2314.5,0.01342642]
[1769992234960,4.31757448,2316.2,2314.5,0.01342642]
[1769992235162,2.90497351,2316.2,2314.6,0.01342642]
[1769992235365,1.8256194,2316.2,2314.7,0.01342642]
[1769992235778,1.07934307,2316.3,2314.7,0.01342642]
[1769992236655,4.33049872,2316.4,2314.8,1.08000691]
[1769992236865,17.18976409,2316.4,2314.8,1.08000691]
[1769992237175,4.31647752,2316.8,2315.0,0.01342642]
[1769992237379,1.82548175,2316.7,2315.1,0.01342642]
[1769992237556,1.82548175,2316.7,2315.2,0.01342642]
[1769992237557,0.0011,2316.1,2315.2,0.01342642]
[1769992237896,1.82548175,2316.7,2315.3,0.01342642]
[1769992238077,0.905,2317.1,2315.3,0.01342642]
[1769992238078,1.07900282,2317.0,2315.4,14.02613355]
[1769992238250,1.07900282,2317.0,2315.4,0.905]
[1769992238776,1.07900282,2317.0,2315.4,1.98469634]
[1769992238777,12.85638662,2316.8,2315.4,1.98469634]
[1769992239276,12.85638662,2316.7,2314.8,4.33330478]
[1769992239479,12.85638662,2316.5,2315.1,1.07984261]
[1769992239653,12.85638662,2316.3,2315.1,1.07985711]
[1769992239854,12.85638662,2316.2,2314.5,1.38870279]
[1769992240171,12.85638662,2315.9,2314.6,1.08007811]
[1769992240375,0.905,2315.8,2314.9,1.07991833]
[1769992240552,0.905,2315.8,2315.0,1.07989189]
[1769992240753,1.07958716,2315.7,2314.3,0.001]
[1769992241054,12.85638662,2315.2,2314.3,0.001]
[1769992241381,12.85638662,2315.2,2314.0,0.6766951]
[1769992241382,15.0349415,2315.1,2314.0,1.08137401]
[1769992241569,12.8429602,2315.6,2314.1,1.08032623]
[1769992242282,12.8429602,2315.6,2314.1,1.09375265]
[1769992242581,1.07958716,2315.7,2314.2,0.01342642]
[1769992242980,1.07958716,2315.7,2314.3,1.08024024]
[1769992243181,1.07958716,2315.7,2314.3,1.09366666]
[1769992243353,1.07958716,2315.7,2314.4,0.54280541]
[1769992244466,1.07958716,2315.7,2314.4,0.55623183]
[1769992244779,1.07945833,2316.0,2314.5,0.01342642]
[1769992244983,4.31730612,2316.3,2314.5,0.01342642]
[1769992244984,1.07930751,2316.3,2314.7,1.09347999]
[1769992245180,1.07930751,2316.3,2314.8,0.54271207]
[1769992245181,0.60631709,2316.2,2314.8,0.54271207]
[1769992245368,12.8429602,2316.1,2314.8,0.54271207]
[1769992246178,12.8429602,2316.1,2314.6,1.0800685]
[1769992246380,13.63290465,2315.9,2314.5,1.08011145]
[1769992246583,13.63290465,2315.7,2314.4,1.08018339]
[1769992246884,13.63290465,2315.7,2314.2,0.905]
[1769992246885,1.07963378,2315.6,2314.3,1.08024024]
[1769992247084,1.07944732,2316.0,2314.4,4.33382735]
[1769992247261,0.53971422,2315.9,2314.5,0.5427494]
[1769992247858,0.53971422,2315.9,2314.5,0.55617582]
[1769992248058,1.07944732,2316.0,2314.7,0.01342642]
[1769992248262,1.07944732,2316.0,2314.5,0.55617582]
[1769992248465,1.07944732,2316.0,2314.6,0.01342642]
[1769992249183,17.95054316,2316.1,2314.7,1.08005357]
[1769992249387,1.9636261,2316.0,2314.8,0.54136943]
[1769992249689,1.07938697,2316.2,2314.9,0.01342642]
[1769992250259,1.07938697,2316.2,2314.9,0.01442642]
[1769992250470,1.07935318,2316.3,2314.9,0.01442642]
[1769992250685,1.07935318,2316.3,2314.9,0.001]
[1769992251086,1.07935318,2316.3,2314.9,1.08096025]
[1769992251392,0.71423021,2316.2,2315.0,0.59421707]
[1769992251913,6.06294895,2316.4,2315.1,0.01342642]
[1769992251914,2.82516393,2316.4,2315.1,0.01342642]
[1769992252110,2.82516393,2316.4,2315.0,0.59421707]
[1769992252262,2.82516393,2316.4,2315.0,0.60764349]
[1769992252676,2.82516393,2316.4,2315.1,0.01342642]
[1769992252871,0.71431408,2316.3,2315.1,0.01342642]
[1769992253092,1.07935411,2316.2,2315.1,1.07986696]
[1769992253400,0.0011,2316.5,2315.2,13.80191759]
[1769992253595,0.0011,2317.1,2315.9,0.01342642]
[1769992253898,0.0011,2317.6,2316.4,0.01342642]
[1769992254064,0.31421503,2318.1,2316.9,0.01342642]
[1769992254264,0.31421503,2318.1,2317.2,0.01342642]
[1769992254466,0.0011,2318.3,2317.3,0.91842642]
[1769992254782,0.0011,2318.5,2317.6,0.01342642]
[1769992255096,0.0011,2318.5,2317.7,0.01342642]
[1769992255299,0.0011,2318.8,2317.9,0.01342642]
[1769992255467,0.54112633,2319.8,2318.2,0.01342642]
[1769992255667,0.54112633,2319.8,2318.4,0.01342642]
[1769992255668,0.31570513,2319.8,2318.4,0.01342642]
[1769992255967,17.95717649,2320.4,2318.4,0.01342642]
[1769992255968,1.07748021,2320.3,2318.7,0.01342642]
[1769992256166,1.07748021,2320.3,2318.5,0.01342642]
[1769992256488,1.07748021,2320.3,2318.8,0.01342642]
[1769992256693,1.07853204,2320.4,2318.8,0.01342642]
[1769992256894,1.70783147,2320.4,2318.9,0.01342642]
[1769992257280,1.70783147,2320.4,2318.9,1.07809737]
[1769992257609,1.0785013,2320.4,2319.0,0.01342642]
[1769992257905,1.07850317,2320.4,2319.1,0.905]
[1769992258207,1.07850573,2320.4,2319.1,0.905]
[1769992258613,1.07853576,2320.4,2319.1,0.905]
[1769992259116,0.0011,2320.4,2319.4,13.78849117]
[1769992259323,4.30804752,2321.3,2319.6,1.09119844]
[1769992259608,1.07693633,2321.4,2320.0,0.01342642]
[1769992259814,1.39685336,2321.5,2320.1,0.91842642]
[1769992260013,0.31995112,2321.5,2320.3,0.01342642]
[1769992260315,1.39684665,2321.5,2320.1,0.905]
[1769992260625,1.9672848,2321.5,2319.9,0.01342642]
[1769992260929,13.64633107,2321.0,2319.5,1.07781612]
[1769992261090,13.64633107,2321.0,2318.9,0.91742642]
[1769992261091,16.26147265,2320.9,2318.9,0.91742642]
[1769992261293,13.64633107,2320.3,2318.2,4.31365602]
[1769992261496,1.07740044,2320.4,2318.9,1.07809005]
[1769992261698,0.54004287,2320.3,2318.9,1.07809005]
[1769992262312,15.98187907,2320.2,2318.3,0.01342642]
[1769992262608,0.01342642,2319.6,2318.4,1.07832599]
[1769992262783,0.01342642,2319.4,2317.9,0.54333244]
[1769992262983,0.01342642,2319.3,2318.1,1.07846825]
[1769992263301,0.01342642,2319.3,2317.6,1.0787021]
[1769992263302,1.07791143,2319.3,2317.6,1.0787021]
[1769992263712,1.07791143,2319.3,2317.3,5.49297888]
[1769992263713,0.01342642,2318.8,2317.3,5.49297888]
[1769992264000,0.01342642,2318.4,2317.0,1.07897535]
[1769992264211,0.01342642,2318.2,2316.9,1.07900142]
[1769992264412,0.01342642,2318.2,2316.3,13.80191759]
[1769992264413,0.51310365,2318.2,2316.4,0.904]
[1769992264717,13.64633107,2318.5,2317.1,1.07890607]
[1769992264919,7.09573742,2318.4,2316.9,1.07900167]
[1769992265121,0.01342642,2318.4,2316.9,4.31609535]
[1769992265322,1.07837639,2318.3,2316.6,1.07916774]
[1769992265526,1.07837639,2318.3,2316.7,0.01342642]
[1769992265827,1.07837639,2318.3,2316.7,0.55705307]
[1769992267226,1.07837639,2318.3,2317.0,0.01342642]
[1769992267425,1.07823686,2318.6,2317.1,1.07893487]
[1769992267728,1.07823686,2318.6,2317.1,1.09236129]
[1769992267894,1.07823686,2318.6,2317.0,1.07898118]
[1769992268098,1.07823686,2318.6,2317.2,0.01342642]
[1769992268099,0.62950443,2318.5,2317.2,0.01342642]
[1769992268298,12.82551831,2318.3,2316.7,0.54362665]
[1769992268535,12.83894473,2318.0,2316.4,1.07923379]
[1769992268838,12.83894473,2318.0,2315.4,0.2970639]
[1769992268839,0.01342642,2317.3,2315.4,0.2970639]
[1769992269039,0.01342642,2316.8,2315.4,0.2970639]
[1769992269264,0.01342642,2316.8,2314.9,13.46710222]
[1769992269265,1.07930751,2316.3,2314.9,0.001]
[1769992269472,0.01342642,2316.1,2314.9,0.001]
[1769992269761,13.36651471,2316.2,2314.9,0.001]
[1769992269920,0.5409964,2316.2,2314.9,0.001]
[1769992270121,1.07930751,2316.3,2314.9,0.001]
[1769992270551,13.90482582,2316.3,2314.9,0.001]
[1769992270772,1.07930751,2316.3,2314.9,0.001]
[1769992270924,1.07912116,2316.7,2315.1,0.01342642]
[1769992271461,7.53185642,2316.6,2314.7,4.3336071]
[1769992271622,2.14499223,2316.5,2314.9,0.01342642]
[1769992271831,1.07912116,2316.7,2315.2,0.01342642]
[1769992272068,1.07912116,2316.7,2314.9,0.01342642]
[1769992272221,1.07912116,2316.7,2315.2,0.01342642]
[1769992272428,13.91783304,2317.2,2315.3,0.01342642]
[1769992272648,4.95177942,2317.1,2315.3,0.01342642]
[1769992272848,5.29023567,2317.0,2315.2,0.01342642]
[1769992273043,1.88696125,2317.0,2315.2,0.01342642]
[1769992273357,1.09259416,2316.6,2314.9,1.07996025]
[1769992274456,0.01342642,2316.4,2314.9,1.07996025]
[1769992274635,0.01342642,2316.4,2314.6,0.001]
[1769992274636,12.83894473,2315.8,2314.6,0.001]
[1769992274836,0.01342642,2315.2,2314.4,0.001]
[1769992275134,0.01342642,2315.0,2314.0,0.001]
[1769992275332,0.01342642,2315.2,2314.0,0.001]
[1769992275333,0.90466957,2315.2,2314.0,0.001]
[1769992275549,0.31677307,2315.1,2314.0,0.001]
[1769992275755,0.31677307,2315.1,2314.1,0.01342642]
[1769992275965,0.31677307,2315.1,2314.2,0.01342642]
[1769992276163,0.31193993,2316.0,2314.1,0.905]
[1769992276377,0.01342642,2315.9,2314.2,1.43855286]
[1769992276572,4.03511542,2315.8,2314.0,0.01442642]
[1769992276775,0.01342642,2315.2,2314.0,0.001]
[1769992277077,12.83894473,2315.2,2314.2,0.001]
[1769992277373,1.07996025,2314.9,2314.0,0.001]
[1769992277871,1.09338667,2314.9,2314.0,0.001]
[1769992278045,1.09338667,2314.9,2313.6,0.001]
[1769992278046,12.82551831,2314.6,2313.6,0.001]
[1769992278246,0.01342642,2314.9,2313.1,13.36728901]
[1769992278446,0.01342642,2314.9,2313.1,1.08180065]
[1769992278647,0.01342642,2314.5,2313.1,1.08180065]
[1769992278843,0.01342642,2314.2,2313.2,0.54061332]
[1769992279063,0.01342642,2314.2,2313.1,1.08180065]
[1769992279271,0.01342642,2314.1,2313.1,1.08180065]
[1769992279470,0.01342642,2314.1,2313.1,0.001]
[1769992279666,1.08028692,2314.2,2313.1,0.001]
[1769992279876,0.01342642,2314.2,2313.1,0.001]
[1769992280054,4.33351702,2314.8,2313.1,0.001]
[1769992280263,0.01342642,2314.5,2313.1,0.001]
[1769992280765,0.01342642,2314.3,2313.1,0.001]
[1769992280972,0.01342642,2314.2,2313.1,0.001]
[1769992281156,0.01342642,2314.4,2313.1,0.001]
[1769992281357,1.09354893,2314.6,2313.1,0.001]
[1769992281559,0.01342642,2314.4,2313.1,0.001]
[1769992281758,0.01342642,2314.3,2313.1,0.001]
[1769992282285,0.01342642,2314.0,2313.1,0.001]
[1769992282460,0.01342642,2313.8,2313.0,0.001]
[1769992282773,0.01342642,2313.6,2313.0,0.001]
[1769992283076,4.33382735,2315.1,2313.0,0.001]
[1769992283281,0.01342642,2313.7,2313.0,0.001]
[1769992283460,1.08056708,2313.6,2313.0,0.001]
[1769992283661,1.0939935,2313.6,2313.0,0.001]
[1769992283880,1.08053859,2313.7,2313.0,0.001]
[1769992284082,1.62345451,2313.7,2313.0,0.001]
[1769992284391,0.01342642,2313.6,2313.0,0.001]
[1769992284562,0.01342642,2314.2,2313.0,0.001]
[1769992284765,0.01342642,2313.9,2313.0,0.001]
[1769992284958,0.01342642,2313.7,2313.0,0.001]
[1769992285479,1.09376002,2314.2,2313.0,0.001]
[1769992285685,0.64810248,2314.1,2313.0,0.001]
[1769992286053,0.01342642,2313.9,2313.0,0.001]
[1769992286391,0.01342642,2313.8,2313.0,0.001]
[1769992286711,0.63467606,2314.1,2313.0,0.001]
[1769992286905,0.71590812,2314.6,2313.0,0.001]
[1769992287057,1.08014689,2314.5,2313.0,0.001]
[1769992287458,1.08010023,2314.6,2313.0,0.001]
[1769992287859,0.01342642,2315.2,2313.1,14.37110222]
[1769992288066,0.01342642,2314.9,2313.1,14.37110222]
[1769992288377,0.01342642,2314.7,2313.1,0.905]
[1769992288704,0.01342642,2314.6,2313.1,0.905]
[1769992288998,0.01342642,2314.4,2313.1,0.905]
[1769992289299,0.01342642,2314.4,2313.0,0.001]
[1769992289300,0.01342642,2314.1,2313.0,0.001]
[1769992289461,1.08019357,2314.4,2313.0,0.001]
[1769992289667,1.37717976,2314.4,2313.0,0.001]
[1769992289861,4.33339657,2314.9,2313.2,0.001]
[1769992289862,1.08005357,2314.7,2313.2,0.001]
[1769992290396,0.0011,2313.9,2313.2,0.001]
[1769992290788,0.0011,2314.1,2313.2,0.001]
[1769992290985,1.07998492,2314.9,2313.2,0.907]
[1769992291496,1.07998492,2314.9,2313.3,1.08070721]
[1769992291704,0.01342642,2314.7,2313.4,0.63105361]
[1769992291883,0.01342642,2314.8,2313.4,0.63105361]
[1769992292072,0.01342642,2314.6,2313.4,0.63105361]
[1769992292267,0.01342642,2314.7,2313.4,0.63105361]
[1769992292583,0.01342642,2314.6,2313.4,0.63105361]
[1769992293499,0.01342642,2314.8,2313.4,0.63105361]
[1769992293802,1.0934683,2314.8,2313.5,1.08061378]
[1769992294096,1.08004188,2314.8,2313.6,0.60341225]
[1769992294393,1.0934683,2314.8,2313.6,0.60341225]
[1769992294591,0.01342642,2314.9,2313.6,0.60341225]
[1769992294592,1.07999351,2314.9,2313.6,0.60341225]
[1769992294893,1.09341993,2314.9,2313.6,0.60341225]
[1769992295198,0.0011,2315.1,2313.6,0.60341225]
[1769992295502,0.0011,2315.1,2313.6,14.06951447]
[1769992295670,0.0011,2315.1,2313.7,2.59687584]
[1769992297375,0.01452642,2315.1,2313.7,2.59687584]
[1769992297785,1.0799136,2315.0,2313.7,2.59687584]
[1769992298299,0.0011,2315.1,2313.7,2.59687584]
[1769992298503,0.0011,2315.1,2313.7,15.35271066]
[1769992298667,0.0011,2315.1,2313.8,2.02916308]
[1769992298867,0.0011,2315.1,2313.9,13.67526124]
[1769992299112,0.31193993,2316.0,2314.3,12.75583482]
[1769992299271,1.39139408,2316.0,2314.4,12.75583482]
[1769992299602,0.01342642,2315.8,2314.3,0.906]
[1769992299904,0.31193993,2316.0,2314.4,1.08019357]
[1769992300117,0.31193993,2316.0,2314.5,0.63069678]
[1769992300118,1.39139695,2316.0,2314.5,0.63069678]
[1769992301491,1.40482337,2316.0,2314.5,0.63069678]
[1769992301911,0.01342642,2315.9,2314.6,1.08010023]
[1769992302201,0.01342642,2315.7,2314.5,1.08011352]
[1769992303183,0.01342642,2315.8,2314.5,1.08011352]
[1769992303402,1.49122311,2315.8,2314.5,2.14284239]
[1769992303578,1.49232311,2315.8,2314.5,2.14284239]
[1769992304211,0.0011,2315.8,2314.5,2.14284239]
[1769992305308,0.0011,2315.8,2314.5,14.89867721]
[1769992305509,17.66245862,2316.9,2314.8,12.75583482]
[1769992305817,0.0011,2317.0,2315.3,13.57820904]
[1769992305981,0.0011,2317.0,2315.3,13.59163546]
[1769992306310,0.0011,2317.0,2315.7,0.01342642]
[1769992306485,0.0011,2317.0,2315.8,0.905]
[1769992306810,0.0011,2317.0,2315.8,14.48320904]
[1769992307114,13.53005182,2318.4,2316.4,0.24699672]
[1769992307409,17.84255593,2318.9,2316.7,13.82520576]
[1769992307575,1.07809737,2318.9,2316.9,13.59163546]
[1769992307778,0.01342642,2318.8,2316.9,13.57820904]
[1769992307979,0.01342642,2318.6,2316.5,0.905]
[1769992308212,1.07837639,2318.3,2316.7,1.07912116]
[1769992308612,1.09180281,2318.3,2316.7,1.07912116]
[1769992309280,0.01342642,2318.0,2316.7,1.07912116]
[1769992309501,13.53005182,2318.2,2316.7,1.07912116]
[1769992310215,0.01342642,2318.0,2316.7,1.07912116]
[1769992310401,0.01342642,2318.0,2316.6,4.69171715]
[1769992310402,0.01342642,2317.8,2316.6,1.07916268]
[1769992310578,1.90969425,2318.0,2316.6,1.07916268]
[1769992310776,0.01342642,2317.8,2316.4,1.07923015]